Cogmind - Beta 14 @@@ ROGUE MODE // 2024.11.29 @ 00:25:24 Player: russur Result: Destroyed by G-47 Trooper with Particle Gun Performance ------------- Evolutions (2) 1000 Regions Visited (5) 1000 Robots Destroyed (63) 315 Value Destroyed (1534) 1534 Prototype IDs (1) 20 Alien Tech Used (0) 0 Bonus (65) 65 TOTAL SCORE: 3934 Bonus ------- High Alert Combat Kills 65 Cogmind --------- Core Integrity 0/550 Matter 300/300 Energy 100/100 System Corruption 4% Temperature Cool (9) Movement Core (350) Ox6 Location -8/Materials Parts ------- > --- POWER (2) -------- (None) > --- PROPULSION (2) --- (None) > --- UTILITY (4) ------ Large Storage Unit Salvage Targeting Computer > --- WEAPON (3) ------- (None) > --- INVENTORY (15) --- Utility Shielding Heavy Armor Plating Peak State ------------ > --- POWER ------------ Ion Engine > --- PROPULSION ------- Aluminum Leg Aluminum Leg > --- UTILITY ---------- Large Matter Pod Heavy Armor Plating > --- WEAPON ----------- Advanced EMP Blaster Advanced EMP Blaster Advanced EMP Blaster > --- INVENTORY -------- Utility Shielding Heavy Armor Plating Light Assault Rifle [Rating: 22] Favorites ----------- Power Ion Engine Engine Ion Engine Propulsion Aluminum Leg Leg Aluminum Leg Wheel Wheel Utility Large Matter Pod Device Heat Sink Storage Large Matter Pod Processor Salvage Targeting Computer Protection Heavy Armor Plating Weapon Improved Light Cannon Energy Gun Medium Laser Ballistic Gun Light Assault Rifle Ballistic Cannon Improved Light Cannon Launcher Advanced EMP Blaster Build | -11 -10 -10 -9 -9 -8 ------- Run | Yrd Mat Min Mat Min Mat Slots Evolved 4 | . . . 2 . 2 Power 1 | . . . . . 1 Propulsion . | . . . . . . Utility 2 | . . . 1 . 1 Weapon 1 | . . . 1 . . Parts Attached 38 | 6 8 . 14 3 7 Power 4 | 1 1 . . 1 1 Engine 4 | 1 1 . . 1 1 Core . | . . . . . . Reactor . | . . . . . . Propulsion 12 | 2 2 . 2 1 5 Treads . | . . . . . . Leg 10 | 2 2 . 2 1 3 Wheel 2 | . . . . . 2 Hover . | . . . . . . Flight . | . . . . . . Utility 8 | 1 2 . 4 1 . Device 3 | 1 . . 2 . . Storage 2 | . 1 . 1 . . Processor 2 | . 1 . . 1 . Hackware . | . . . . . . Protection 1 | . . . 1 . . Artifact . | . . . . . . Weapon 14 | 2 3 . 8 . 1 Energy Gun 4 | 1 3 . . . . Energy Cannon . | . . . . . . Ballistic Gun 3 | 1 . . 1 . 1 Ballistic Cannon 3 | . . . 3 . . Launcher 4 | . . . 4 . . Special Weapon . | . . . . . . Impact Weapon . | . . . . . . Slashing Weapon . | . . . . . . Piercing Weapon . | . . . . . . Special Melee Weapon . | . . . . . . Unidentified Prototypes 1 | . . . 1 . . Parts Lost 17 | . 1 . 3 . 13 Power 2 | . . . . . 2 Propulsion 7 | . . . 1 . 6 Utility 2 | . . . 1 . 1 Weapon 6 | . 1 . 1 . 4 Highest Loss Streak 7 | . 1 . 1 . 7 To Critical Strikes . | . . . . . . Average Slot Usage (%) 86 | . 95 100 81 100 64 Engine 11 | . 14 14 11 11 9 Leg 20 | . 28 28 19 22 12 Device 6 | . 8 . 3 11 6 Storage 13 | . 5 14 13 18 9 Processor 5 | . 10 14 . 3 9 Protection 1 | . . . 4 . . Energy Gun 5 | . 22 28 1 . . Ballistic Cannon 15 | . . . 11 33 15 Launcher 4 | . . . 13 . . Peak Build Rating 22 | 8 10 9 22 14 15 Average Rating 11 | 3 8 9 14 12 10 On Entrance 8 | . 8 9 9 12 13 Naked Turns . | . . . . . . Heaviest Build 41 | 9 13 13 41 41 39 Greatest Support 23 | 20 20 20 20 20 23 Greatest Overweight (x) 6 | . . . 2 2 6 Average Overweight (x) . | . . . 1 1 1 Largest Inventory Capacity 15 | 5 5 5 15 15 15 Average Capacity 10 | 5 5 5 7 15 15 Most Carried 7 | 5 5 5 5 7 5 Average Carried 4 | 3 4 4 4 5 4 Final Capacity 15 | 5 5 5 15 15 15 Final Carried 5 | 3 4 5 4 5 3 Class Distribution -------------------- 43% | Scavenger-Gunner 28% | Mutant 10% | Scavenger-Mutant 8% | Tank 4% | Bomber Dominant Class ---------------- Mutant | -10/Materials Scavenger-Mutant | -10/Mines Scavenger-Gunner | -9/Materials Scavenger-Gunner | -9/Mines Mutant | -8/Materials Resources | -11 -10 -10 -9 -9 -8 ----------- Run | Yrd Mat Min Mat Min Mat Matter Collected 1607 | 267 191 63 378 394 314 Remotely . | . . . . . . Salvage Created 1702 | 73 231 42 824 311 221 Parts 106 | 5 15 5 57 13 11 Haulers Intercepted 1 | . . . 1 . . Recyclers Shooed 4 | . . . 3 . 1 Parts Field Recycled . | . . . . . . Retrieved Matter . | . . . . . . Parts Self-Destructed . | . . . . . . Prevented . | . . . . . . Kills | -11 -10 -10 -9 -9 -8 ------- Run | Yrd Mat Min Mat Min Mat Combat Hostiles Destroyed 40 | . 4 3 15 12 6 Guns 6 | . 3 3 . . . Cannons 22 | . . . 4 12 6 AOE 11 | . 1 . 10 . . Classes Destroyed 12 | 2 3 1 4 2 . Worker 6 | . 2 . 3 . 1 Builder 3 | . . . 2 . 1 Tunneler 2 | 1 . . 1 . . Hauler 1 | . . . 1 . . Recycler 4 | 1 . . 1 1 1 Operator 2 | . . . 2 . . Watcher 5 | . 1 . 3 . 1 Swarmer 13 | . . 3 3 7 . Grunt 23 | . 4 . 11 3 5 Brawler 1 | . . . . 1 . Duelist 1 | . . . . 1 . Sentry 2 | . . . 1 . 1 Best Kill Streak 8 | 1 6 3 8 8 8 Combat Bots Only 7 | . 4 3 4 7 2 Max Kills in Single Turn 4 | 1 1 1 4 1 1 Gunslinging . | . . . . . . Exploded 3 | . 1 . 3 . . Melee . | . . . . . . Uniques/NPCs Destroyed . | . . . . . . Combat | -11 -10 -10 -9 -9 -8 -------- Run | Yrd Mat Min Mat Min Mat Hostile Shots Fired 253 | . 28 6 37 47 135 Missed 70 | . 5 . 10 9 46 Damage Taken 2867 | . 326 40 706 338 1457 Core 693 | . 36 15 46 42 554 Absorbed by Shields . | . . . . . . Core Remaining (%) 85 | 100 . 79 . 78 . Volleys Fired 134 | 7 24 3 35 26 39 Largest 3 | 2 2 2 3 3 3 Hottest 117 | 70 115 115 117 117 117 Shots Fired 312 | 14 39 6 85 78 90 Gun 70 | 14 39 6 . . 11 Cannon 214 | . . . 57 78 79 Launcher 28 | . . . 28 . . Special . | . . . . . . Kinetic 238 | 7 6 . 57 78 90 Thermal 39 | 7 26 6 . . . Explosive . | . . . . . . Electromagnetic 35 | . 7 . 28 . . Robot Hit Streak 6 | 4 5 6 6 4 6 Robot Miss Streak 13 | 1 4 1 13 5 4 Penetration Max . | . . . . . . Secondary Targets 2 | . 1 1 . . . Max Gunslinging Chain 1 | . 1 1 . . . Shots Hit Robots 141 | 8 22 5 25 29 52 Core Hits 83 | 4 13 3 29 13 21 Critical Kills . | . . . . . . Critical Parts Destroyed . | . . . . . . Critical Strikes 11 | . 1 . 1 4 5 Burn 1 | . 1 . . . . Blast 10 | . . . 1 4 5 Melee Attacks . | . . . . . . Impact . | . . . . . . Slashing . | . . . . . . Piercing . | . . . . . . Sneak Attacks . | . . . . . . Combat Hostiles . | . . . . . . Follow-up Attacks . | . . . . . . Damage Inflicted 3779 | 77 299 77 1538 696 1092 Guns 487 | 77 265 77 . . 68 Cannons 2119 | . . . 474 696 949 Explosions 1082 | . 34 . 1048 . . Melee . | . . . . . . Ramming 91 | . . . 16 . 75 Kinetic 2264 | 41 36 . 474 696 1017 Thermal 387 | 36 224 77 50 . . Explosive 206 | . . . 206 . . Electromagnetic 831 | . 39 . 792 . . Impact . | . . . . . . Slashing . | . . . . . . Piercing . | . . . . . . Highest Corruption 4 | . 2 2 3 3 4 Average Corruption 2 | . 2 2 2 3 3 Corruption Purged . | . . . . . . Corruption Blocked . | . . . . . . Effects 22 | . 4 3 7 7 1 Message Errors 8 | . . . 3 4 1 Matter Fused 6 | . 2 1 2 1 . Heat Flow Errors 3 | . . . 1 2 . Energy Discharges 2 | . . 1 1 . . Data Loss (minor) 1 | . . 1 . . . Data Loss (major) 2 | . 2 . . . . Overload Shots . | . . . . . . Overflow Damage 99 | . . . 74 10 15 Projectiles 25 | . . . . 10 15 Explosions 74 | . . . 74 . . Melee . | . . . . . . Knockbacks 17 | . . . 2 6 9 Impact . | . . . . . . Kinetic 14 | . . . 2 5 7 Secondary 3 | . . . . 1 2 Self-Inflicted Damage 371 | . . . 351 . 20 Shots 15 | . . . 15 . . Rammed 19 | . . . . . 19 Targets Rammed 32 | . . . 6 . 26 Kicked 13 | . . . 6 . 7 Crushed . | . . . . . . Highest Temperature 301 | 90 301 162 218 256 208 Average Temperature 68 | 43 111 85 42 38 92 Received Heat Transfer 1224 | . 210 . 174 30 810 Effects 2 | . 2 . . . . Energy Bleed 2 | . 2 . . . . Siege Activations . | . . . . . . Robots Corrupted 1 | . . . 1 . . Combat Hostiles 1 | . . . 1 . . Parts Fried 7 | . . . 7 . . Impact Corruptions . | . . . . . . Robots Melted . | . . . . . . Combat Hostiles . | . . . . . . Parts Melted 2 | . 1 1 . . . Heat Transferred 1075 | 111 679 185 100 . . Parts Sabotaged . | . . . . . . Parts Stolen . | . . . . . . Parts Stripped . | . . . . . . Power Chain Reactions 3 | . 1 . 2 . . Alert | -11 -10 -10 -9 -9 -8 ------- Run | Yrd Mat Min Mat Min Mat Peak Influence 569 | 10 134 137 569 463 345 Initial 221 | . 6 52 53 221 137 Average 247 | 4 46 79 313 349 240 Maximum Alert Level 2 | . . . 2 2 1 Low Security (%) 41 | 100 100 100 35 . 36 Level 1 36 | . . . 28 64 63 Level 2 21 | . . . 36 35 . Level 3 . | . . . . . . Level 4 . | . . . . . . Level 5 . | . . . . . . High Security . | . . . . . . Max Security . | . . . . . . Squads Dispatched 3 | . 1 . 1 . 1 Investigation . | . . . . . . Extermination . | . . . . . . Reinforcement 3 | . 1 . 1 . 1 Assault . | . . . . . . Garrison . | . . . . . . Intercept . | . . . . . . Searches Triggered . | . . . . . . Construction Impeded 1 | . . . . . 1 Haulers Reinforced . | . . . . . . Active Scanning Responses . | . . . . . . Cargo Convoy Interrupts . | . . . . . . Stealth | -11 -10 -10 -9 -9 -8 --------- Run | Yrd Mat Min Mat Min Mat Distress Signals 5 | . 1 . 1 . 3 Communications Jammed . | . . . . . . Distress Signals . | . . . . . . Times Spotted 66 | . 8 3 23 14 18 Peak Tracking Total 6 | . 3 3 4 3 6 Tactical Retreats 7 | . . . 3 1 3 Traps | -11 -10 -10 -9 -9 -8 ------- Run | Yrd Mat Min Mat Min Mat Traps Triggered 3 | . 1 . 2 . . Indirectly 1 | . . . 1 . . Trap Hack Attempts . | . . . . . . Triggered . | . . . . . . Disarmed . | . . . . . . Reprogrammed . | . . . . . . Reused . | . . . . . . Traps Extracted . | . . . . . . Installed . | . . . . . . Triggered . | . . . . . . Machines | -11 -10 -10 -9 -9 -8 ---------- Run | Yrd Mat Min Mat Min Mat Machines Disabled 15 | . . . 13 . 2 Max in Single Turn 4 | . . . 4 . 1 Machines Repaired . | . . . . . . Machines Dismantled . | . . . . . . Machines Sabotaged . | . . . . . . Overloaded Fab Kills . | . . . . . . Hacking | -11 -10 -10 -9 -9 -8 --------- Run | Yrd Mat Min Mat Min Mat Machines Accessed 2 | . . . . . 2 Terminals 1 | . . . . . 1 Fabricators . | . . . . . . Repair Stations . | . . . . . . Recycling Units . | . . . . . . Scanalyzers 1 | . . . . . 1 Garrison Access . | . . . . . . Total Hacks 3 | . . . . . 3 Successful 3 | . . . . . 3 Failed . | . . . . . . Catastrophic . | . . . . . . Database Lockouts . | . . . . . . Manual . | . . . . . . Terminals 1 | . . . . . 1 Fabricators . | . . . . . . Repair Stations . | . . . . . . Recycling Units . | . . . . . . Scanalyzers 2 | . . . . . 2 Garrison Access . | . . . . . . Terminal Hacks 1 | . . . . . 1 Robot Analysis 1 | . . . . . 1 Fabricator Hacks . | . . . . . . Repair Station Hacks . | . . . . . . Recycling Unit Hacks . | . . . . . . Scanalyzer 2 | . . . . . 2 Insert Component 1 | . . . . . 1 Analyze 1 | . . . . . 1 Garrison Access Hacks . | . . . . . . Unauthorized Hacks . | . . . . . . Terminals . | . . . . . . Fabricators . | . . . . . . Repair Stations . | . . . . . . Recycling Units . | . . . . . . Scanalyzers . | . . . . . . Garrison Access . | . . . . . . Data Cores Recovered 1 | . . . 1 . . Used . | . . . . . . Hacking Detections 1 | . . . . . 1 Full Trace Events . | . . . . . . Feedback Events . | . . . . . . Feedback Blocked . | . . . . . . Robot Schematics Acquired . | . . . . . . Robots Built . | . . . . . . Authchips . | . . . . . . Time . | . . . . . . Total Robot Build Rating . | . . . . . . Part Schematics Acquired 1 | . . . . . 1 Parts Built . | . . . . . . Authchips . | . . . . . . Time . | . . . . . . Total Part Build Rating . | . . . . . . Parts Repaired . | . . . . . . Time . | . . . . . . Parts Recycled . | . . . . . . Recycled Matter . | . . . . . . Retrieved Matter . | . . . . . . Retrieved Components . | . . . . . . Parts Scanalyzed 1 | . . . . . 1 Part Schematics Acquired 1 | . . . . . 1 Parts Damaged . | . . . . . . Bothacking | -11 -10 -10 -9 -9 -8 ------------ Run | Yrd Mat Min Mat Min Mat Used RIF Installer . | . . . . . . Robots Hacked . | . . . . . . Non-combat . | . . . . . . Combat . | . . . . . . Robot Hacks Applied . | . . . . . . Relay Couplers Released . | . . . . . . Fabnet Peak Effective % . | . . . . . . Robots Rewired . | . . . . . . Allies Hacked . | . . . . . . Hacks Repelled . | . . . . . . Allies | -11 -10 -10 -9 -9 -8 -------- Run | Yrd Mat Min Mat Min Mat Total Allies . | . . . . . . Largest Group . | . . . . . . Highest-Rated Group . | . . . . . . Highest-Rated Ally . | . . . . . . Total Orders . | . . . . . . Ally Attacks . | . . . . . . Total Damage . | . . . . . . Kills . | . . . . . . Allies Corrupted . | . . . . . . Allies Melted . | . . . . . . Intel | -11 -10 -10 -9 -9 -8 ------- Run | Yrd Mat Min Mat Min Mat Robot Analysis Total 1 | . . . . . 1 Derelict Logs Recovered 2 | . . 1 . 1 . Drone Launches . | . . . . . . Drone Recoveries . | . . . . . . Exploration | -11 -10 -10 -9 -9 -8 ------------- Run | Yrd Mat Min Mat Min Mat Turns Passed 2377 | 114 254 194 795 615 405 Spaces Moved 1025 | 73 127 154 315 228 128 Core 30 | 16 . . . . 14 Treads . | . . . . . . Legs 963 | 57 127 154 315 228 82 Wheels 32 | . . . . . 32 Hover . | . . . . . . Flight . | . . . . . . Fastest Speed 50 | 50 120 120 120 190 80 Average Speed 177 | 104 120 120 206 228 180 Slowest Speed 350 | 120 120 120 260 260 350 Overloaded Moves . | . . . . . . Propulsion Burnouts . | . . . . . . Robots Hopped . | . . . . . . Cave-ins Triggered . | . . . . . . Exploration Rate (%) 29 | 4 31 45 33 49 13 Regions Visited 5 Branch Regions 2 Pre-discovered Areas . | . . . . . . Known Exits Taken . | . . . . . . Unknown Exits Taken 5 | 1 1 1 1 1 . Scrap Searched 2 | . . 1 . 1 . Spaces Dug . | . . . . . . Terrain Destroyed 44 | . 6 . 31 2 5 Melee . | . . . . . . Projectile 8 | . . . 1 2 5 AOE 36 | . 6 . 30 . . Terrain Rammed . | . . . . . . Walls Destroyed . | . . . . . . Machines Disabled . | . . . . . . Actions | -11 -10 -10 -9 -9 -8 --------- Run | Yrd Mat Min Mat Min Mat Total 1309 | 98 192 157 395 263 204 Wait 22 | 3 19 . . . . Move 1020 | 72 126 153 314 227 128 Hop . | . . . . . . Pick Up 40 | 9 8 1 14 4 4 Fast Attach 1 | 1 . . . . . Attach 29 | 5 4 . 13 1 6 Detach 3 | . 2 . 1 . . Swap 8 | . 4 . 1 2 1 Drop 20 | 1 5 . 11 3 . Fire 134 | 7 24 3 35 26 39 Melee . | . . . . . . Ram 19 | . . . . . 19 Kick 13 | . . . 6 . 7 Crush . | . . . . . . Escape Stasis . | . . . . . . Rewire . | . . . . . . Trap . | . . . . . . Miscellaneous . | . . . . . . Route ------- -11/Scrapyard -10/Materials -10/Mines -9/Materials -9/Mines -8/Materials (discovered 1 exit: [*Sto]) History --------- Turn | Location | Event 28 | -11/Scrapyard | Discovered new exit (range 14) 115 | -11/Scrapyard | Entered Materials 265 | -10/Materials | Discovered new exit (range 15) 312 | -10/Materials | Build established: Mutant 369 | -10/Materials | Entered Mines 384 | -10/Mines | Met a Derelict bent on vengeance 525 | -10/Mines | Learned Materials stockpile data 544 | -10/Mines | Discovered new exit (range 11) 563 | -10/Mines | Entered Materials 563 | -9/Materials | Evolved 2 slots: Utility x1, Weapon x1 1084 | -9/Materials | Discovered new exit (range 16) 1358 | -9/Materials | Entered Mines 1430 | -9/Mines | Build established: Scavenger-Gunner 1485 | -9/Mines | Learned Materials security intel 1581 | -9/Mines | Destroyed 7 combat bots 1961 | -9/Mines | Discovered new exit (range 7) 1973 | -9/Mines | Entered Materials 1973 | -8/Materials | Evolved 2 slots: Power x1, Utility x1 2196 | -8/Materials | Lost 3 parts (1p1n1w) 2216 | -8/Materials | Discovered new exit (range 5) 2288 | -8/Materials | Lost 7 parts (1p2n1u3w) 2294 | -8/Materials | Core integrity fell below 50% 2359 | -8/Materials | Core integrity fell below 20% 2378 | -8/Materials | Destroyed by G-47 Trooper with Particle Gun Last Messages --------------- 02329_ Slammed into A-02 Transporter. 02330_ Wheel broken. 02330_ Destabilizing: Short circuit. 02333_ Slammed into A-02 Transporter. 02333_ Salvage Targeting Computer broken. 02333_ Destabilizing: Short circuit. 02335_ Slammed into A-02 Transporter. 02335_ Destabilizing: Core damaged (-16). 02336_ Slammed into A-02 Transporter. 02340_ Slammed into G-47 Trooper. 02340_ Wheel destroyed. 02341_ Slammed into G-47 Trooper. 02343_ BPFRUPXAVU%FLS0EN:, LR BCVT&MKHITO 02344_ Slammed into G-47 Trooper. 02346_ Critical hit (Burn: +37). 02348_ Slammed into G-47 Trooper. 02351_ Destabilizing: System corrupted (+2). 02355_ Slammed into G-47 Trooper. 02362_ K-01 Serf collects debris. 02369_ Broken Wheel destroyed. Map ----- +----------------------------------------------------+ | ?????+ #?????????????????? | | ?????# ########!#?????????????????? | | ??????????????# #?????????????????? | | ??????????????# #?????????????????? | | ??????????????# #?????????????????? | | ?????????????## #?????????????????? | | ?????????????## #?????????????????? | | ?????????????## ##????????????????? | | ?????????????## ##????????????????? | | #######?????###*###########???????? | | # #?????# [# #???????? | | # #?????# % * # "" #???????? | | # ####### + S"" #???????? | | # """ # # "" #???????? | | # """ # # # #???????? | | # """ + ### ###########???????? | | # # #?# #?????????????????? | | # """ # #?# #?????????????????? | | # """ ## ####+####??????????????? | | # """ ## ## #??????????????? | | ? ## ## #??????????????? | | ? ## ## #??????#???????? | | ?####### r ## #????? #???????? | | ???????# g##############+######+## | | ???????# g g | | ???????# @%%% | | ???????# k | | ???????# #####T###############/## | | ???????# #???###????????????????? | | ???????# #??????????????????????? | | ???????# #??????????????????????? | | ???????# #??????????????????????? | | ???????#####??????????????????????? | | ??????????????????????????????????? | | ??????????????????????????????????? | | ??????????????????????????????????? | | ??????????????????????????????????? | | ??????????????????????????????????? | | ??????????????????????????????????? | | ??????????????????????????????????? | | ??????????????????????????????????? | | ??????????????????????????????????? | | ??????????????????????????????????? | | | | | | | | | | | | | | | +----------------------------------------------------+ Best States ------------- Heat Dissipation 41 Energy Generation 15 Energy Capacity 250 Matter Stores 450 Matter Capacity 450 Sight Range 18 Terrain Scan Range 16 Terrain Scan Density 10 Armor Coverage 600 Evasion (%) 55 Salvage Targeting 1 Item Schematics ----------------- Hvy. Armor Plating | -8/Materials | Scanalyzed Robot Schematics ------------------ None Fabricated ------------ Nothing Alien Tech Used ----------------- None Achievements -------------- None Challenges ------------ None Game ------ Seed LaserTransmissionLegs Manual? 0 Play Time 00:25:36 Cumulative 24.5 hours Start 2024.11.29 @ 00:03:40 End 2024.11.29 @ 00:25:24 Sessions 1 Manual Loads 0 Difficulty Rogue Special Mode None Game No. 64 Rogue 64 Adventurer 0 Explorer 0 Win Type - Total 0 Types 0/0/0/0/0/0/0/0/0 Lore% 13 Gallery% 27 Achievement% 26 Wizard Run 0 Options --------- Layout 2 ASCII 0 Keyboard 0 Movement Mouse Keybinds 0 Fullscreen 1 Font 24/Smallcaps Map View 50x44 Zoom Use 0% Tactical HUD 1 Map Filters NONE Filters NONE Steam 1 RUN: 45119a22-1c7d-4358-8fa9-be4900b9bef5